bitfinex-derivatives/quotes_ETHF0:USTF0_20241228
["timestamp","ask_amount","ask_price","bid_price","bid_amount"]
[1735387586244,0.73804,3364.4,3364.3,3.2078]
[1735387588839,0.4403,3364.4,3363.7,3.2078]
[1735387589039,0.2978,3363.8,3363.7,3.6349]
[1735387590353,0.2978,3363.8,3363.7,3.2078]
[1735387590545,0.29782,3363.5,3363.4,0.4271]
[1735387591939,0.29785,3363.2,3363.1,3.50566]
[1735387592140,0.29785,3363.2,3363.1,3.2078]
[1735387597247,0.29787,3363.0,3362.9,0.76567]
[1735387598547,3.2078,3363.4,3363.2,0.29785]
[1735387598747,3.2078,3363.4,3363.3,0.29784]
[1735387600554,3.50563,3363.4,3363.3,0.29784]
[1735387601243,3.50563,3363.4,3362.9,2.04108466]
[1735387601447,0.29785,3363.2,3363.1,0.29786]
[1735387601648,3.2078,3364.0,3363.1,3.2078]
[1735387601947,3.2078,3364.0,3363.9,0.29779]
[1735387603253,0.29776,3364.2,3364.0,0.29778]
[1735387603554,0.29776,3364.3,3364.2,0.29776]
[1735387603754,0.29774,3364.5,3364.3,0.29775]
[1735387604052,0.29774,3364.5,3364.2,3.2078]
[1735387604053,0.29774,3364.5,3364.4,0.4474]
[1735387606550,0.4282,3364.6,3364.5,0.29774]
[1735387606744,0.4405,3364.9,3364.4,0.4474]
[1735387606951,0.29771,3364.8,3364.6,3.50552]
[1735387607254,0.29772,3364.7,3364.6,3.50552]
[1735387608350,0.29771,3364.9,3364.7,0.29771]
[1735387610247,0.4342,3365.3,3364.7,0.29771]
[1735387610451,0.29771,3364.8,3364.7,0.29771]
[1735387610762,0.29772,3364.8,3364.6,3.50552]
[1735387611257,0.29772,3364.8,3364.7,0.29772]
[1735387611451,0.4342,3365.3,3364.7,0.29772]
[1735387611653,0.29771,3364.9,3364.7,0.29772]
[1735387611959,0.29771,3364.8,3364.7,0.29772]
[1735387612258,0.29767,3365.3,3365.1,0.29768]
[1735387612459,0.29767,3365.3,3365.2,0.4232]
[1735387613754,0.29767,3365.3,3365.2,0.8645]
[1735387617165,0.29773,3364.6,3364.4,0.29774]
[1735387617355,0.29774,3364.5,3364.2,4.78108466]
[1735387617560,4.78108466,3365.0,3364.3,0.29775]
[1735387617764,0.29775,3364.4,3364.2,3.50556]
[1735387617958,0.29774,3364.5,3364.3,0.29775]
[1735387618357,0.29774,3364.5,3364.2,3.2078]
[1735387618358,3.95789313,3364.8,3364.2,3.2078]
[1735387618559,0.29772,3364.7,3364.5,0.29773]
[1735387620068,4.25560313,3364.8,3364.6,0.29773]
[1735387620262,4.25561313,3364.8,3364.6,0.29773]
[1735387620456,0.29772,3364.7,3364.6,0.29773]
[1735387620661,0.29772,3364.7,3364.5,0.29773]
[1735387621063,0.29773,3364.6,3364.5,0.29773]
[1735387621266,0.4507,3364.8,3364.2,4.78108466]
[1735387621467,0.29772,3364.7,3364.6,0.29773]
[1735387621770,0.29773,3364.6,3364.5,0.29773]
[1735387622068,0.4507,3364.8,3364.2,3.50556]
[1735387622367,0.29775,3364.3,3364.2,3.50556]
[1735387622570,0.29775,3364.3,3364.2,3.2078]
[1735387627471,0.29775,3364.3,3364.2,3.50556]
[1735387627674,3.50719313,3364.6,3364.5,0.29774]
[1735387627875,3.80492313,3364.6,3364.5,0.29774]
[1735387628474,3.50719313,3364.6,3364.3,0.8977]
[1735387628674,0.29774,3364.5,3364.4,0.29774]
[1735387629377,0.29774,3364.4,3364.3,1.19545]
[1735387629872,0.29773,3364.6,3364.5,0.29773]
[1735387631075,3.95789313,3364.8,3364.3,0.8977]
[1735387631278,0.29774,3364.5,3364.4,0.29774]
[1735387631479,3.95789313,3364.8,3364.3,0.8977]
[1735387631677,7.8898791,3365.0,3364.3,0.8977]
[1735387631678,7.01269313,3365.0,3364.4,1.04211]
[1735387631881,7.01269313,3365.0,3364.8,0.2977]
[1735387632779,0.29771,3364.8,3364.7,0.29771]
[1735387633682,0.29772,3364.7,3364.6,0.29772]
[1735387633874,0.29771,3364.8,3364.4,0.29774]
[1735387634079,0.29771,3364.8,3364.6,0.29772]
[1735387637088,3.2078,3365.0,3364.5,1.57328466]
[1735387637290,3.50719313,3365.2,3365.1,0.29768]
[1735387637483,3.50719313,3365.2,3365.1,1.47468]
[1735387638486,0.29763,3365.7,3365.5,0.29765]
[1735387638987,3.93589313,3365.9,3365.3,3.2078]
[1735387639191,0.29763,3365.7,3365.4,0.29765]
[1735387639386,3.93589313,3365.9,3365.5,0.29764]
[1735387639591,3.50719313,3365.8,3365.3,3.2078]
[1735387639888,3.50719313,3365.8,3365.7,0.29762]
[1735387640790,0.4287,3365.9,3365.7,0.29762]
[1735387641091,0.72631,3365.9,3365.7,0.29762]
[1735387642079,0.72631,3365.9,3365.3,3.2078]
[1735387642080,3.50719313,3366.0,3365.8,1.57328466]
[1735387642279,3.50719313,3366.0,3365.9,2.79281]
[1735387642280,0.68959313,3366.0,3365.9,2.79281]
[1735387643289,5.85612765,3366.4,3365.9,2.4952]
[1735387643590,4.6820791,3366.8,3366.1,4.78108466]
[1735387643791,0.29755,3366.7,3366.2,0.29759]
[1735387643993,0.72805,3366.7,3366.3,0.29757]
[1735387644189,0.72805,3366.7,3366.4,0.29756]
[1735387644588,0.4305,3366.7,3366.1,4.78108466]
[1735387644891,0.72804,3366.7,3366.4,0.29756]
[1735387645094,0.4305,3366.7,3366.1,3.2078]
[1735387645292,0.29756,3366.5,3366.2,0.29758]
[1735387645595,0.4349,3366.4,3366.2,0.29758]
[1735387645893,0.73247,3366.4,3366.1,3.50539]
[1735387646196,0.29758,3366.3,3366.1,3.2078]
[1735387646691,0.29759,3366.2,3366.1,3.2078]
[1735387646898,0.29758,3366.3,3366.1,3.2078]
[1735387647195,0.29759,3366.2,3366.1,3.2078]
[1735387647495,3.6427,3366.4,3365.6,3.2078]
[1735387647691,0.2976,3366.0,3365.6,3.2078]
[1735387647886,0.4581,3365.9,3365.7,0.29763]
[1735387648090,0.4608,3365.8,3365.7,0.29763]
[1735387654299,0.4608,3365.8,3365.7,1.87091466]
[1735387658008,0.4608,3365.8,3365.7,1.57328466]
[1735387658298,0.4608,3365.8,3365.7,1.87091466]
[1735387659697,0.4608,3365.8,3365.7,1.57328466]
[1735387659901,0.75842,3365.8,3365.7,1.57328466]
[1735387661002,0.4608,3365.8,3365.7,1.87091466]
[1735387666311,0.46284827,3365.8,3365.7,1.87091466]
[1735387678614,0.46284827,3365.8,3365.2,3.2078]
[1735387678816,0.29764,3365.6,3365.3,0.29766]
[1735387679016,0.29764,3365.6,3365.2,3.2078]
[1735387679017,0.29765,3365.5,3365.2,3.50547]
[1735387679229,0.29766,3365.4,3365.2,3.2078]
[1735387679717,0.465,3365.5,3364.9,4.63724551]
[1735387679925,0.29769,3365.0,3364.9,4.63724551]
[1735387680415,1.62899,3365.0,3364.9,4.63724551]
[1735387680617,1.62899,3365.0,3364.9,0.39964551]
[1735387681123,0.29772,3364.7,3364.5,0.29774]
[1735387681824,0.29772,3364.8,3364.6,0.29773]
[1735387682221,4.9797991,3364.8,3364.6,0.29773]
[1735387683020,4.6820791,3364.8,3364.4,3.2078]
[1735387683221,0.29774,3364.5,3364.4,3.2078]
[1735387688528,0.29773,3364.7,3364.5,0.29773]
[1735387689028,4.6820791,3364.9,3364.8,0.29771]
[1735387689218,2.935,3365.0,3364.8,0.29771]
[1735387689417,2.935,3365.0,3364.6,0.4628]
[1735387689627,0.29772,3364.7,3364.6,0.76052]
[1735387690328,2.935,3365.0,3364.6,0.76052]
[1735387690329,2.935,3365.0,3364.6,0.4628]
[1735387690524,3.2327,3365.0,3364.8,0.2977]
[1735387690731,0.2977,3365.0,3364.8,0.2977]
[1735387691525,3.2078,3365.1,3364.8,0.2977]
[1735387691526,0.2977,3364.9,3364.8,0.2977]
[1735387694029,0.29771,3364.8,3364.7,0.29771]
[1735387696531,0.29771,3364.9,3364.8,0.29771]
[1735387696928,0.29771,3364.9,3364.7,0.29771]
[1735387697231,0.29771,3364.8,3364.7,0.29771]
[1735387697835,4.6820791,3365.3,3364.7,0.7443]
[1735387698023,4.9797491,3365.3,3365.2,0.29767]
[1735387698227,0.29767,3365.3,3365.2,0.29767]
[1735387698635,0.29768,3365.2,3365.1,0.29768]
[1735387699136,0.29768,3365.2,3365.0,3.2078]
[1735387699137,0.29768,3365.1,3365.0,3.50549]
[1735387699527,0.29768,3365.2,3365.1,0.29768]
[1735387700828,0.29768,3365.1,3365.0,3.50549]
[1735387702032,0.29769,3365.1,3364.9,0.29769]
[1735387702331,0.2977,3364.9,3364.8,0.7403]
[1735387702738,0.2977,3364.9,3364.8,0.4426]
[1735387703334,0.2977,3364.9,3364.6,0.4628]
[1735387703335,3.2078,3365.0,3364.6,0.4628]
[1735387703636,0.29772,3364.7,3364.6,1.19213]
[1735387704434,0.29772,3364.7,3364.6,0.8944]
[1735387704837,0.29772,3364.7,3364.6,1.19213]
[1735387705737,0.29772,3364.7,3364.6,0.8944]
[1735387706148,0.4532,3364.9,3364.1,3.2078]
[1735387706149,0.29776,3364.2,3364.1,3.2078]
[1735387707337,3.2078,3364.2,3363.7,0.4249]
[1735387707542,0.2978,3363.8,3363.7,0.4249]
[1735387707936,0.29782,3363.7,3363.5,0.29782]
[1735387708741,0.29782,3363.7,3363.4,3.6612]
[1735387708941,0.29782,3363.7,3363.6,0.29782]
[1735387710155,0.2978,3363.8,3363.6,0.29782]
[1735387710348,3.49757394,3364.0,3363.4,3.6612]
[1735387710547,0.29781,3363.8,3363.5,0.29782]
[1735387710750,0.29781,3363.8,3363.4,3.6612]
[1735387710951,0.29781,3363.8,3363.6,0.29781]
[1735387711154,4.41377394,3364.1,3363.6,0.29781]
[1735387711355,0.29781,3363.8,3363.6,0.29781]
[1735387711954,0.29781,3363.7,3363.6,0.29781]
[1735387713052,0.2978,3363.8,3363.6,0.29781]
[1735387713854,0.2978,3363.8,3363.7,0.4653]
[1735387715352,0.2978,3363.8,3363.7,0.76311]
[1735387715549,0.9162,3364.1,3363.7,0.4653]
[1735387715754,3.2078,3364.2,3364.1,0.29777]
[1735387717158,3.50556,3364.2,3364.0,0.72227]
[1735387717454,3.2078,3364.2,3364.0,0.72227]
[1735387719752,3.50556,3364.2,3364.0,0.72227]
[1735387720662,3.2078,3364.2,3364.1,0.29777]
[1735387722556,3.49757394,3364.6,3364.1,0.29777]
[1735387722557,3.49757394,3364.6,3364.5,0.29774]
[1735387722765,3.49757394,3364.6,3364.5,6.25782466]
[1735387723464,7.00304394,3365.3,3364.5,5.96008466]
[1735387723769,0.29768,3365.2,3364.9,0.2977]
[1735387724256,6.70537394,3365.3,3364.5,4.3868]
[1735387724459,0.74419,3365.2,3364.5,4.3868]
[1735387724669,0.29772,3364.7,3364.5,4.3868]
[1735387724858,0.75153,3364.6,3364.5,4.3868]
[1735387725059,1.22063,3364.6,3364.5,4.3868]
[1735387725355,1.22063,3364.6,3364.5,3.2078]
[1735387725555,0.29774,3364.5,3364.2,0.73426]
[1735387725751,0.4295,3364.5,3364.0,3.6532]
[1735387725961,0.29776,3364.3,3364.0,3.95098]
[1735387727163,3.49757394,3364.4,3364.3,0.29775]
[1735387728264,3.49757394,3364.6,3364.5,0.29774]
[1735387728566,3.49757394,3364.6,3364.5,5.07882466]
[1735387728862,3.49757394,3364.9,3364.8,0.29771]
[1735387730057,3.49757394,3364.9,3364.6,0.4512]
[1735387730255,3.49757394,3364.9,3364.7,0.29771]
[1735387730457,0.4593,3365.0,3364.7,0.29771]
[1735387730768,0.7277,3364.9,3364.6,0.74892]
[1735387730960,0.7277,3364.9,3364.7,0.29771]
[1735387731460,0.43,3364.9,3364.7,0.29771]
[1735387733166,0.43,3364.9,3364.8,0.29771]
[1735387734067,0.43,3364.9,3364.6,0.4512]
[1735387734268,0.76571,3364.8,3364.6,0.29773]
[1735387734763,0.29773,3364.6,3364.5,3.2078]
[1735387735067,0.29773,3364.6,3364.3,0.29775]
[1735387735068,0.29774,3364.5,3364.3,0.29775]
[1735387735267,0.29775,3364.4,3364.0,3.2078]
[1735387735468,0.44,3364.3,3364.1,0.29777]
[1735387735664,0.73775,3364.3,3364.1,0.29777]
[1735387735866,0.468,3364.2,3364.1,0.29777]
[1735387736167,0.468,3364.2,3364.0,3.50558]
[1735387736361,0.468,3364.2,3364.0,3.2078]
[1735387736568,0.29777,3364.1,3364.0,3.2078]
[1735387737073,0.76577,3364.2,3364.0,3.2078]
[1735387738674,4.26334394,3364.2,3364.0,3.2078]
[1735387738970,0.29777,3364.1,3364.0,3.2078]
[1735387741874,3.93757394,3364.3,3364.0,3.2078]
[1735387742174,0.72386,3364.2,3364.1,0.29776]
[1735387743170,0.4261,3364.2,3364.1,0.29776]
[1735387743779,3.92990966,3364.2,3364.1,0.29776]
[1735387744472,1.70224,3364.1,3363.6,4.78108466]
[1735387744671,1.70224,3364.1,3364.0,0.29778]
[1735387747076,1.70224,3364.1,3363.8,0.4498]
[1735387747274,1.70224,3364.1,3363.6,3.2078]
[1735387747477,0.2978,3363.8,3363.6,3.50561]
[1735387747773,0.4549,3364.0,3363.6,3.2078]
[1735387747973,0.29779,3363.9,3363.7,0.74501]
[1735387749071,0.4549,3364.0,3363.7,0.4472]
[1735387749279,0.75268,3364.0,3363.8,0.29779]
[1735387750373,0.4549,3364.0,3363.8,0.2978]
[1735387750678,0.4549,3364.0,3363.7,0.4472]
[1735387750981,1.70224,3364.1,3364.0,0.29778]
[1735387752373,2.37724966,3364.3,3364.2,0.29776]
[1735387752573,2.37724966,3364.3,3364.2,1.87104466]
[1735387752774,2.37724966,3364.3,3364.2,1.94555023]
[1735387753066,2.37724966,3364.3,3364.2,1.87104466]
[1735387753268,4.6820791,3365.1,3364.2,1.57328466]
[1735387753467,4.6820791,3365.1,3364.6,3.2078]
[1735387753468,0.29771,3364.9,3364.6,3.2078]
[1735387753672,0.29771,3364.9,3364.7,0.29772]
[1735387754472,0.2977,3365.0,3364.8,0.29771]
[1735387757882,0.29769,3365.1,3364.8,0.29771]
[1735387758279,0.29769,3365.1,3364.6,3.2078]
[1735387758481,0.29769,3365.1,3364.9,0.2977]
[1735387760282,5.5810791,3365.2,3364.6,3.2078]
[1735387760483,5.5810791,3365.2,3365.1,0.29768]
[1735387760673,0.899,3365.2,3365.1,0.29768]
[1735387761580,4.6820791,3365.3,3365.2,0.29767]
[1735387762081,7.8898791,3365.5,3365.4,0.29766]
[1735387763883,4.6820791,3365.5,3365.4,0.29766]
[1735387764481,0.29764,3365.6,3365.4,0.29766]
[1735387764674,0.29765,3365.5,3365.4,0.29766]
[1735387765283,3.50545,3365.5,3365.4,0.29766]
[1735387765885,0.29765,3365.5,3365.4,0.29766]
[1735387766480,6.0461791,3365.7,3365.0,4.5408]
[1735387766779,0.29765,3365.5,3365.0,4.5408]
[1735387766983,0.29764,3365.6,3365.5,0.29765]
[1735387767176,0.29765,3365.5,3365.4,0.29765]
[1735387767584,0.29765,3365.6,3365.1,0.29768]
[1735387767885,0.29764,3365.6,3365.0,4.5408]
[1735387768075,0.29764,3365.6,3365.5,0.29765]
[1735387769082,1.3641,3365.7,3365.0,4.5408]
[1735387769382,0.29767,3365.3,3365.2,0.29766]
[1735387772998,0.29769,3365.1,3364.7,1.3637]
[1735387773384,0.7441,3365.6,3364.7,1.3637]
[1735387773590,0.29771,3364.8,3364.7,0.29771]
[1735387773788,3.2078,3365.4,3364.6,3.2078]
[1735387774088,0.29772,3364.7,3364.6,3.50552]
[1735387774492,0.29772,3364.7,3364.6,3.2078]
[1735387776288,0.29772,3364.7,3364.6,3.50553]
[1735387779594,0.29772,3364.7,3364.6,3.2078]
[1735387780290,0.29772,3364.7,3364.6,3.50553]
[1735387782989,0.29772,3364.7,3364.6,3.2078]
[1735387784692,0.29774,3364.4,3364.3,0.29775]
[1735387787198,0.867,3364.5,3363.9,3.2078]
[1735387787795,0.29777,3364.1,3364.0,0.29777]
[1735387789200,0.29778,3364.0,3363.9,3.2078]
[1735387789397,0.73028,3364.0,3363.9,3.50559]
[1735387789896,0.73028,3364.0,3363.9,3.2078]
[1735387791597,0.4325,3364.0,3363.5,3.2078]
[1735387791805,0.8791,3363.9,3363.5,3.50562]
[1735387791993,0.29782,3363.6,3363.5,3.2078]
[1735387794306,0.8791,3363.9,3363.5,3.2078]
[1735387794597,0.29782,3363.6,3363.5,3.2078]
[1735387794799,1.57328466,3363.6,3362.9,0.8913]
[1735387794998,0.29786,3363.1,3362.9,1.18917]
[1735387795512,0.29787,3363.0,3362.8,0.29788]
[1735387795697,0.29788,3362.9,3362.7,3.51955]
[1735387796399,0.29789,3362.8,3362.7,0.01386]
[1735387801604,0.29796,3362.0,3361.9,0.29796]
[1735387802001,1.3088,3362.4,3361.8,3.2078]
[1735387802205,0.29795,3362.2,3362.0,0.29795]
[1735387803411,3.2078,3362.5,3361.8,4.78108466]
[1735387803595,0.2979,3362.7,3362.2,3.2078]
[1735387803797,1.87117466,3362.8,3362.6,0.2979]
[1735387805004,0.2979,3362.7,3362.6,0.2979]
[1735387805610,0.2979,3362.7,3362.5,0.29791]
[1735387805805,0.2979,3362.6,3362.5,0.29791]
[1735387806406,0.2979,3362.6,3362.4,0.29791]
[1735387806910,0.29791,3362.6,3362.4,0.29792]
[1735387808207,0.29791,3362.5,3362.4,0.29792]
[1735387808514,1.57328466,3362.8,3362.3,1.62083]
[1735387808515,0.29792,3362.4,3362.3,1.62083]
[1735387809413,3.2078,3363.0,3362.3,1.3229]
[1735387809606,3.2078,3363.0,3362.9,0.29788]
[1735387810007,3.2078,3363.0,3362.3,2.4969]
[1735387810207,0.2979,3362.7,3362.5,0.29791]
[1735387810408,0.4601,3362.9,3362.5,0.29791]
[1735387810707,0.2979,3362.6,3362.5,0.29791]
[1735387810909,0.2979,3362.6,3362.3,2.4969]
[1735387811110,0.29791,3362.5,3362.3,2.79483]
[1735387811409,0.29791,3362.6,3362.4,0.29792]
[1735387811605,0.2979,3362.7,3362.5,0.29791]
[1735387812406,0.4478,3362.8,3362.7,0.2979]
[1735387812612,3.2078,3363.0,3362.9,0.29788]
[1735387812812,0.29786,3363.1,3362.9,0.29787]
[1735387813012,3.2078,3363.5,3362.9,0.29788]
[1735387813212,1.57328466,3363.4,3362.7,3.2078]
[1735387813415,0.4655,3363.3,3362.8,0.29788]
[1735387813614,0.29787,3363.0,3362.8,0.29788]
[1735387814214,0.4655,3363.3,3362.6,3.2078]
[1735387814415,3.2078,3363.5,3362.6,8.2078]
[1735387814618,3.2078,3363.5,3363.4,0.29783]
[1735387815020,3.2078,3363.5,3362.9,2.5593]
[1735387815215,0.29783,3363.4,3363.0,0.29786]
[1735387815415,0.29786,3363.2,3363.0,0.29786]
[1735387815617,0.29784,3363.4,3363.2,0.29784]
[1735387815816,0.29784,3363.4,3362.9,2.5593]
[1735387816016,0.29784,3363.4,3363.2,0.29785]
[1735387816212,0.29784,3363.4,3363.3,0.29784]
[1735387816413,3.2078,3363.5,3363.3,0.29784]
[1735387816614,0.29783,3363.4,3363.3,0.29784]
[1735387816921,0.29784,3363.4,3363.2,3.2078]
[1735387817110,0.29784,3363.4,3363.2,3.50565]
[1735387817316,1.57328466,3363.7,3363.2,3.2078]
[1735387817516,0.29784,3363.3,3363.2,3.2078]
[1735387818037,0.4318,3363.8,3363.2,3.2078]
[1735387818419,5.96419,3363.9,3363.7,0.29781]
[1735387818622,5.2078,3363.9,3363.2,3.2078]
[1735387818920,5.2078,3363.9,3363.8,0.2978]
[1735387819326,5.50559,3363.9,3363.5,0.29782]
[1735387819521,5.50559,3363.9,3363.7,0.29781]
[1735387820223,5.2078,3363.9,3363.5,0.9363]
[1735387820422,0.2978,3363.8,3363.6,0.29781]
[1735387821421,5.2078,3363.9,3363.5,0.9363]
[1735387821619,2.0,3363.9,3363.8,0.2978]
[1735387827629,2.0,3363.9,3363.8,3.5056]
[1735387829732,1.28253999,3363.9,3363.8,3.5056]
[1735387830321,1.28253999,3363.9,3363.8,8.5056]
[1735387831033,1.28253999,3363.9,3363.8,3.5056]
[1735387831533,4.3986,3364.9,3364.6,0.29772]
[1735387833026,4.3986,3364.9,3364.7,0.29772]
[1735387836238,4.3986,3364.9,3364.8,0.29771]
[1735387836431,4.3986,3364.9,3364.5,3.2078]
[1735387836637,4.3986,3364.9,3364.7,0.29771]
[1735387837337,4.3986,3364.9,3364.8,0.29771]
[1735387837728,4.1009,3364.9,3364.8,0.29771]
[1735387838235,0.8931,3364.9,3364.5,3.2078]
[1735387838536,0.29773,3364.6,3364.5,3.2078]
[1735387840434,0.8931,3364.9,3364.5,3.2078]
[1735387840637,0.29772,3364.7,3364.5,3.50554]
[1735387840937,0.8931,3364.9,3364.5,3.2078]
[1735387841142,0.8931,3364.9,3364.8,0.29771]
[1735387842838,0.8931,3364.9,3364.6,0.29772]
[1735387843039,0.29771,3364.8,3364.6,0.29772]
[1735387843745,0.29771,3364.8,3364.7,0.29772]
[1735387843944,0.29771,3364.8,3364.6,0.29772]
[1735387844243,1.19081,3364.9,3364.7,0.29771]
[1735387846342,0.8931,3364.9,3364.7,0.29771]
[1735387846543,0.29771,3364.8,3364.7,0.29771]
[1735387847042,0.8931,3364.9,3364.8,0.29771]
[1735387848234,1.1908,3364.9,3364.8,0.29771]
[1735387848845,0.29771,3364.8,3364.7,0.29772]
[1735387849545,0.8931,3364.9,3364.5,3.2078]
[1735387849747,1.19081,3364.9,3364.8,0.29771]
[1735387850243,0.8931,3364.9,3364.8,0.29771]
[1735387850444,1.1908,3364.9,3364.8,0.29771]
[1735387851245,0.8931,3364.9,3364.5,3.2078]
[1735387851649,0.29771,3364.8,3364.7,0.29772]
[1735387852751,0.29772,3364.7,3364.6,0.29772]
[1735387853144,0.29772,3364.7,3364.5,0.29773]
[1735387854243,4.37855279,3364.9,3364.5,0.29773]
[1735387854548,0.29773,3364.7,3364.5,0.29773]
[1735387857939,0.29773,3364.6,3364.5,0.29773]
[1735387858145,0.29773,3364.6,3364.4,0.29774]
[1735387858843,4.37855279,3364.9,3364.0,4.3858]
[1735387859149,0.29774,3364.5,3364.2,0.29776]
[1735387859345,0.72075,3364.4,3364.2,0.29776]
[1735387859543,0.4418,3364.3,3364.2,0.29776]
[1735387859744,0.29776,3364.2,3364.0,3.2078]
[1735387859945,0.29777,3364.1,3363.7,0.2978]
[1735387860347,0.29779,3363.9,3363.7,0.2978]
[1735387860547,0.7208,3363.8,3363.6,0.29781]
[1735387860746,0.9028,3363.7,3363.6,0.29781]
[1735387861641,0.29782,3363.6,3363.4,0.29783]
[1735387861846,1.87110466,3363.6,3363.3,8.12474889]
[1735387862145,0.29783,3363.5,3363.3,3.50564]
[1735387862351,1.87110466,3363.6,3363.3,3.50564]
[1735387862849,1.87110466,3363.6,3363.4,0.29783]
[1735387863054,0.29783,3363.5,3363.3,3.2078]
[1735387863240,0.29783,3363.5,3363.3,3.50564]
[1735387863450,0.29783,3363.5,3363.3,0.29784]
[1735387864248,5.05873745,3363.6,3363.3,0.29784]
[1735387864450,3.48545279,3363.5,3363.4,0.29783]
[1735387865151,3.48545279,3363.5,3363.4,1.18353]
[1735387865948,3.48545279,3363.8,3363.7,0.29781]
[1735387867255,3.48545279,3363.9,3363.8,0.2978]
[1735387871461,0.4258,3363.9,3363.8,0.2978]
[1735387874359,3.48545279,3364.0,3363.9,0.29779]
[1735387875254,7.12535279,3364.1,3363.5,1.92256]
[1735387875458,7.12535279,3364.1,3364.0,0.29778]
[1735387876056,7.42313279,3364.1,3363.5,1.178]
[1735387876261,7.12535279,3364.1,3363.9,0.29778]
[1735387876563,7.42312279,3364.1,3363.9,0.29778]
[1735387877154,7.42312279,3364.1,3364.0,0.29778]
[1735387877155,6.69325279,3364.1,3364.0,0.29778]
[1735387877359,7.12345279,3364.1,3364.0,0.29778]
[1735387877561,8.3200791,3364.1,3364.0,0.29778]
[1735387877959,8.3200791,3364.1,3363.5,0.74455]
[1735387878161,0.29778,3364.0,3363.8,0.2978]
[1735387878557,3.50678193,3364.0,3363.3,4.3848]
[1735387878764,3.50678193,3364.0,3363.9,0.29779]
[1735387881568,3.50678193,3364.0,3363.9,0.29779]
[1735387882463,3.50678193,3364.0,3363.3,4.3848]
[1735387882667,0.29782,3363.6,3363.3,4.68264]
[1735387882863,1.16123,3363.5,3363.3,3.50564]
[1735387883262,0.29783,3363.4,3363.3,3.2078]
[1735387883764,0.8634,3363.5,3362.8,0.29788]
[1735387883765,0.29787,3363.0,3362.8,0.29788]
[1735387883969,0.29787,3363.1,3362.8,0.29788]
[1735387884176,0.4237,3362.9,3362.8,0.29788]
[1735387884865,2.29486466,3362.9,3362.7,3.2078]
[1735387885574,0.4324,3362.8,3362.7,3.2078]
[1735387887371,0.73029,3362.8,3362.7,3.2078]
[1735387887778,1.18939,3362.8,3362.7,3.2078]
[1735387887976,0.2979,3362.7,3362.4,0.29792]
[1735387888278,1.18939,3362.8,3362.5,0.29791]
[1735387889969,1.18939,3362.8,3362.3,0.29792]
[1735387889970,0.2979,3362.7,3362.3,0.29792]
[1735387890276,0.29791,3362.6,3362.3,0.29792]
[1735387890676,0.8915,3362.8,3362.2,3.2078]
[1735387890872,0.29791,3362.6,3362.3,0.29793]
[1735387892070,0.29793,3362.3,3362.2,3.2078]
[1735387893583,0.29793,3362.4,3362.2,3.2078]
[1735387893780,0.29793,3362.4,3362.2,3.50574]
[1735387893978,0.4683,3362.3,3362.2,3.50574]
[1735387896981,0.76623,3362.3,3362.2,3.50574]
[1735387898686,0.4683,3362.3,3362.2,3.50574]
[1735387898883,0.76623,3362.3,3362.2,3.50574]
[1735387899085,1.22963,3362.3,3362.2,3.2078]
[1735387900289,0.29799,3361.7,3361.5,3.5058]
[1735387900484,0.4236,3361.6,3361.5,3.5058]
[1735387901478,1.15049,3361.6,3361.5,3.2078]
[1735387905586,0.8525,3361.6,3361.1,3.6583]
[1735387905782,0.29803,3361.2,3361.1,3.2078]
[1735387907585,0.29802,3361.3,3361.1,3.2078]
[1735387907790,0.29802,3361.4,3361.1,3.50583]
[1735387907993,0.8525,3361.6,3361.1,3.2078]
[1735387908193,1.1505,3361.6,3361.4,0.29801]
[1735387908483,0.8525,3361.6,3361.4,0.29801]
[1735387908685,0.298,3361.5,3361.4,0.29801]
[1735387909090,0.8525,3361.6,3361.2,0.2981]
[1735387909289,0.29802,3361.4,3361.2,0.59613]
[1735387909684,0.29802,3361.3,3361.2,0.2981]
[1735387909885,0.8525,3361.6,3361.2,0.2981]
[1735387910087,0.29803,3361.2,3361.1,3.2078]
[1735387911693,0.29803,3361.2,3361.0,0.29804]
[1735387911993,0.8525,3361.6,3360.8,0.4296]
[1735387912187,0.29805,3360.9,3360.8,0.4296]
[1735387912489,1.57328466,3361.4,3360.8,0.4296]
[1735387912693,0.29805,3361.0,3360.8,0.4296]
[1735387912887,0.448,3360.9,3360.8,0.4296]
[1735387913392,0.448,3360.9,3360.8,0.72766]
[1735387913983,3.2078,3361.5,3360.8,0.4296]
[1735387914191,3.5058,3361.5,3361.3,0.29801]
[1735387914392,3.2078,3361.5,3360.8,0.4296]
[1735387914588,0.29803,3361.3,3360.8,0.4296]
[1735387914788,0.29803,3361.2,3360.8,0.4296]
[1735387914994,0.4364,3361.2,3360.8,0.4296]
[1735387915291,0.29806,3360.9,3360.7,3.50587]
[1735387916097,0.4545,3361.0,3360.7,3.50587]
[1735387916295,0.75255,3361.0,3360.7,3.50587]
[1735387917299,0.75255,3361.0,3360.8,0.29806]
[1735387918499,0.4545,3361.0,3360.9,0.29805]
[1735387918687,0.4364,3361.2,3361.0,0.29804]
[1735387918688,0.73443,3361.2,3361.0,0.29804]
[1735387919893,0.4364,3361.2,3361.1,0.29804]
[1735387920095,0.73443,3361.2,3361.0,0.29804]
[1735387920395,0.4364,3361.2,3361.1,0.29804]
[1735387920593,0.73443,3361.2,3361.0,0.29804]
[1735387921194,0.4364,3361.2,3360.8,1.2164]
[1735387921393,0.29805,3361.0,3360.8,1.21616]
[1735387922695,0.4364,3361.2,3360.8,1.21616]
[1735387922900,0.29804,3361.1,3360.9,0.29805]